[Event "34th MPL National U14G-ch 2022"]
[Site "Ahmedabad"]
[Date "2022.05.09"]
[Round "1.1"]
[White "Mrittika Mallick"]
[Black "Sanivarapu Hasini"]
[Result "1-0"]
[ECO "B01"]
[WhiteElo "1982"]
[BlackElo "1222"]
[Annotator "TA"]
[PlyCount "63"]
[EventDate "2022.05.09"]
[EventType "swiss"]
[EventCountry "IND"]
[SourceTitle "playchess.com"]
[Source "ChessBase"]
[SourceQuality "1"]
[TimeControl "5400+30"]

{[%evp 13,62,36,50,35,52,51,47,46,65,62,91,91,100,90,185,189,236,233,431,431,444,322,344,343,342,339,680,656,1022,1010,1105,1063,1152,1079,2103,2101,2035,2002,1973,1860,1770,1477,29987,29988,29991,29992,29993,29993,29998,29999,29999]} 1. e4 {[%emt 0:00:41]} d5 {[%emt 0:00:11]} 2. exd5 {[%emt 0:00:53]} Nf6 {[%emt 0:00:12]} 3. d4 {[%emt 0:00:44]} Nxd5 {[%emt 0:00:09]} 4. Nf3 {[%emt 0:01:07]} g6 {[%emt 0:03:02]} 5. Be2 {[%emt 0:01:22]} Bg7 {[%emt 0:00:50]} 6. O-O {[%emt 0:01:56]} O-O {[%emt 0:01:01]} 7. c3 {[%emt 0:00:56]} Bf5 {[%emt 0:06:11] [#]} 8. Qb3 $146 {[%emt 0:03:55] B01: Scandinavian Defence.} ({Predecessor:} 8. Re1 h6 9. Nbd2 c6 10. Nc4 Nd7 11. Bd3 Bxd3 12. Qxd3 Qc7 13. Bd2 Rad8 14. Qc2 c5 15. Ne3 N7f6 16. Nxd5 Nxd5 17. dxc5 Qxc5 {0-1 (52) Warnault,P (1857)-Ricter,J (2065) Nimes 2018}) 8... Nb6 {[%emt 0:04:22]} 9. a4 {[%emt 0:04:45]} a5 {[%emt 0:03:27]} 10. Bf4 {[%emt 0:02:04] White is slightly better.} Nc6 {[%emt 0:16:20][%cal Oe7e5]} 11. Na3 {[%emt 0:05:24]} Nd5 {[%emt 0:09:46]} 12. Bg3 {[%emt 0:00:56]} Rb8 {[%emt 0:06:54]} 13. Nb5 {[%emt 0:03:14]} e5 {[%emt 0:02:22]} (13... Rc8 $16) 14. dxe5 $18 {[%emt 0:02:06]} ({Resist} 14. Nxe5 Be6 $16) 14... Be6 {[%emt 0:04:08]} (14... Nb6 $142 15. Nfd4 Be4) 15. Bc4 {[%emt 0:02:35] [#] Rfd1 is the strong threat.} Qd7 $2 {[%emt 0:05:22]} (15... Nce7 16. Nfd4 c6) 16. Rad1 {[%emt 0:01:05]} Rbd8 {[%emt 0:01:18]} 17. h4 {[%emt 0:09:53] Black must now prevent Bxd5.} Nce7 {[%emt 0:01:58]} 18. Bxd5 {[%emt 0:01:33]} Nxd5 {[%emt 0:04:40]} 19. c4 {[%emt 0:00:21]} Qc6 $2 {[%emt 0:01:05]} (19... c6 20. Na3 (20. cxd5 Bxd5 21. Rxd5 Qxd5 $18) (20. Nc3 Nxc3 21. Rxd7 Ne2+ 22. Kh2 Rxd7 $18) 20... Qe7 21. cxd5 Rxd5) 20. Nfd4 {[%emt 0:01:07]} Qb6 {[%emt 0:01:18]} 21. Nxe6 {[%emt 0:00:07]} fxe6 {[%emt 0:00:06]} 22. cxd5 {[%emt 0:00:11]} exd5 {[%emt 0:02:21]} 23. Rxd5 {[%emt 0:02:30]} Qe6 {[%emt 0:01:23]} 24. Nxc7 {[%emt 0:00:08]} Qf7 {[%emt 0:01:11]} 25. e6 {[%emt 0:00:06]} Qe7 {[%emt 0:00:20] [#]} 26. Bd6 $1 {[%emt 0:02:03]} Rxd6 {[%emt 0:01:58]} 27. Rxd6 {[%emt 0:00:07]} Kh8 {[%emt 0:01:32]} 28. Rd7 {[%emt 0:00:35] White mates.} Qxh4 {[%emt 0:01:42]} 29. e7 {[%emt 0:00:15]} Rc8 {[%emt 0:01:22]} 30. Qf7 {[%emt 0:00:18]} h5 {[%emt 0:01:05]} 31. e8=Q+ {[%emt 0:00:07]} Rxe8 {[%emt 0:00:04]} 32. Qxg7# {[%emt 0:00:07] Black did not feel at home in the position after the opening.  Weighted Error Value: White=0.09 (flawless) /Black=0.76} 1-0

[Event "34th MPL National U14G-ch 2022"]
[Site "Ahmedabad"]
[Date "2022.05.09"]
[Round "1.2"]
[White "Athira A J"]
[Black "Sachi Jain"]
[Result "0-1"]
[ECO "A84"]
[WhiteElo "1217"]
[BlackElo "1768"]
[Annotator "NA RC COMBH"]
[PlyCount "106"]
[EventDate "2022.05.09"]
[EventType "swiss"]
[EventCountry "IND"]
[SourceTitle "playchess.com"]
[Source "ChessBase"]
[SourceQuality "1"]
[TimeControl "5400+30"]

1. d4 {[%emt 0:00:05]} d5 {[%emt 0:00:08]} 2. c4 {[%emt 0:00:11]} e6 {[%emt 0:00:21]} 3. Nc3 {[%emt 0:00:18]} f5 {[%emt 0:00:39]} 4. Bf4 {[%emt 0:04:35]} c6 {[%emt 0:00:31]} 5. Nf3 {[%emt 0:02:27]} Nf6 {[%emt 0:00:08]} 6. h3 {[%emt 0:02:30]} Be7 {[%emt 0:01:01]} 7. e3 {[%emt 0:01:30]} O-O {[%emt 0:03:11]} 8. Bd3 {[%emt 0:01:38]} Ne4 {[%emt 0:00:55]} 9. O-O {[%emt 0:02:37]} Nd7 {[%emt 0:02:31]} 10. Qc2 {[%emt 0:07:59]} Qe8 {[%emt 0:05:44]} 11. c5 {[%emt 0:07:36]} Qh5 {[%emt 0:08:47]} 12. Be2 {[%emt 0:06:00]} Qe8 {[%emt 0:04:28]} 13. Nxe4 {[%emt 0:01:27]} fxe4 {[%emt 0:00:03]} 14. Ne5 {[%emt 0:05:08]} Bf6 {[%emt 0:03:08]} 15. Nxd7 {[%emt 0:01:35]} Bxd7 {[%emt 0:00:02]} 16. Qc3 {[%emt 0:00:16]} Qg6 {[%emt 0:00:38]} 17. Kh1 {[%emt 0:01:28]} Rae8 {[%emt 0:02:48]} 18. b4 {[%emt 0:08:59]} h5 {[%emt 0:07:05]} 19. Qb2 {[%emt 0:03:28]} Qf5 {[%emt 0:01:44]} 20. g4 {[%emt 0:02:07]} hxg4 {[%emt 0:01:45]} 21. Bxg4 {[%emt 0:01:00]} Qh7 {[%emt 0:00:53]} 22. Bg3 {[%emt 0:05:51]} Rf7 {[%emt 0:03:34]} 23. Kg2 {[%emt 0:15:13]} Bh4 {[%emt 0:01:49]} 24. Qe2 {[%emt 0:01:26]} Ref8 {[%emt 0:04:48]} 25. Rab1 {[%emt 0:05:07]} Rf6 {[%emt 0:04:50]} 26. Bh5 {[%emt 0:03:35]} Rf5 {[%emt 0:02:27]} 27. Bxh4 {[%emt 0:00:58]} Rxh5 {[%emt 0:00:07]} 28. Bg3 {[%emt 0:00:10]} e5 {[%emt 0:03:46]} 29. h4 {[%emt 0:01:28]} Qg6 {[%emt 0:03:03]} 30. Qd2 {[%emt 0:02:57]} Rxh4 {[%emt 0:06:38]} 31. Rh1 {[%emt 0:00:15]} Rxh1 {[%emt 0:00:36]} 32. Rxh1 {[%emt 0:00:03]} Bg4 {[%emt 0:00:05]} 33. Rh2 {[%emt 0:01:14]} Bf3+ {[%emt 0:00:47]} 34. Kf1 {[%emt 0:01:33]} Rf5 {[%emt 0:01:46]} 35. Qc1 {[%emt 0:02:28]} Rh5 {[%emt 0:03:27]} 36. Rxh5 {[%emt 0:00:28]} Qxh5 {[%emt 0:00:02]} 37. Ke1 {[%emt 0:00:01]} exd4 {[%emt 0:00:10]} 38. exd4 {[%emt 0:00:41]} Qh1+ {[%emt 0:01:32]} 39. Kd2 {[%emt 0:00:01]} e3+ {[%emt 0:00:10]} 40. Kc2 {[%emt 0:00:56]} Qh7+ {[%emt 0:10:48]} 41. Kc3 {[%emt 0:01:50]} e2 {[%emt 0:00:03]} 42. Qe3 {[%emt 0:01:16]} Qb1 {[%emt 0:00:53]} 43. Qe6+ {[%emt 0:00:21]} Kh8 {[%emt 0:01:31]} 44. Qh3+ {[%emt 0:00:20]} Kg8 {[%emt 0:00:08]} 45. Qe6+ {[%emt 0:00:05]} Kh7 {[%emt 0:00:04]} 46. Qh3+ {[%emt 0:00:25]} Kg6 {[%emt 0:00:23]} 47. Qe6+ {[%emt 0:00:33]} Kg5 {[%emt 0:00:44]} 48. Qe7+ {[%emt 0:01:01]} Kh5 {[%emt 0:02:48]} 49. Qf7+ {[%emt 0:00:55]} Kg4 {[%emt 0:00:01]} 50. Qf4+ {[%emt 0:00:24]} Kh3 {[%emt 0:00:05]} 51. Qh4+ {[%emt 0:00:32]} Kg2 {[%emt 0:00:01]} 52. Qh2+ {[%emt 0:00:04]} Kf1 {[%emt 0:00:10]} 53. Qh3+ {[%emt 0:00:18]} Bg2 {[%emt 0:13:14]} 0-1

[Event "34th MPL National U14G-ch 2022"]
[Site "Ahmedabad"]
[Date "2022.05.09"]
[Round "1.3"]
[White "Rout Yashita"]
[Black "Kaushal, Khushi"]
[Result "0-1"]
[ECO "C07"]
[WhiteElo "1718"]
[BlackElo "1213"]
[Annotator "NA RC COMBH"]
[PlyCount "94"]
[EventDate "2022.05.09"]
[EventType "swiss"]
[EventCountry "IND"]
[SourceTitle "playchess.com"]
[Source "ChessBase"]
[SourceQuality "1"]
[TimeControl "5400+30"]

1. e4 {[%emt 0:00:41]} e6 {[%emt 0:00:13]} 2. d4 {[%emt 0:00:44]} d5 {[%emt 0:00:10]} 3. Nd2 {[%emt 0:00:28]} c5 {[%emt 0:00:22]} 4. exd5 {[%emt 0:00:49]} Qxd5 {[%emt 0:00:19]} 5. dxc5 {[%emt 0:03:19]} Bxc5 {[%emt 0:01:26]} 6. Ngf3 {[%emt 0:01:06]} Nc6 {[%emt 0:01:27]} 7. Bc4 {[%emt 0:01:12]} Qd6 {[%emt 0:00:34]} 8. O-O {[%emt 0:01:36]} Nf6 {[%emt 0:00:43]} 9. Qe2 {[%emt 0:02:50]} O-O {[%emt 0:07:04]} 10. Nb3 {[%emt 0:01:49]} Bb6 {[%emt 0:01:04]} 11. Bg5 {[%emt 0:02:53]} Nd7 {[%emt 0:00:51]} 12. Rad1 {[%emt 0:02:11]} Qc7 {[%emt 0:00:38]} 13. Rfe1 {[%emt 0:07:45]} Nc5 {[%emt 0:03:30]} 14. Nbd4 {[%emt 0:02:34]} Nxd4 {[%emt 0:04:27]} 15. Nxd4 {[%emt 0:00:12]} a6 {[%emt 0:02:13]} 16. c3 {[%emt 0:04:11]} Bd7 {[%emt 0:04:10]} 17. Rd2 {[%emt 0:25:01]} Ne4 {[%emt 0:02:32]} 18. Qxe4 {[%emt 0:09:09]} Qxc4 {[%emt 0:00:24]} 19. Qxb7 {[%emt 0:02:36]} Qc7 {[%emt 0:04:32]} 20. Qxc7 {[%emt 0:01:40]} Bxc7 {[%emt 0:00:03]} 21. Red1 {[%emt 0:01:39]} f6 {[%emt 0:01:05]} 22. Be3 {[%emt 0:01:13]} e5 {[%emt 0:00:16]} 23. Nc2 {[%emt 0:01:21]} Be6 {[%emt 0:00:17]} 24. Nb4 {[%emt 0:02:47]} Rfb8 {[%emt 0:06:56]} 25. Nc6 {[%emt 0:02:38]} Rb7 {[%emt 0:03:21]} 26. b3 {[%emt 0:02:26]} Kf8 {[%emt 0:05:31]} 27. Kf1 {[%emt 0:07:30]} Ke8 {[%emt 0:06:53]} 28. Bc5 {[%emt 0:03:03]} a5 {[%emt 0:06:53]} 29. Ke1 {[%emt 0:02:00]} Rc8 {[%emt 0:04:51]} 30. Ne7 {[%emt 0:02:02]} Rcb8 {[%emt 0:04:23]} 31. Nd5 {[%emt 0:00:54]} Bd8 {[%emt 0:02:49]} 32. Bd6 {[%emt 0:01:26]} Rc8 {[%emt 0:01:50]} 33. c4 {[%emt 0:00:12]} a4 {[%emt 0:00:32]} 34. Rd3 {[%emt 0:00:48]} Rc6 {[%emt 0:02:11]} 35. Ba3 {[%emt 0:00:49]} Bf5 {[%emt 0:01:20]} 36. Rg3 {[%emt 0:01:31]} axb3 {[%emt 0:00:32]} 37. Ne3 {[%emt 0:02:24]} bxa2 {[%emt 0:10:51]} 38. Nxf5 {[%emt 0:00:25]} Rb1 {[%emt 0:01:02]} 39. Bb2 {[%emt 0:01:02]} Ba5+ {[%emt 0:00:40]} 40. Ke2 {[%emt 0:00:28]} Rxb2+ {[%emt 0:00:13]} 41. Kf3 {[%emt 0:00:18]} Rb3+ {[%emt 0:01:57]} 42. Ke4 {[%emt 0:00:10]} Rxc4+ {[%emt 0:01:25]} 43. Kd5 {[%emt 0:00:15]} Rxg3 {[%emt 0:00:16]} 44. Nd6+ {[%emt 0:00:35]} Ke7 {[%emt 0:01:30]} 45. Nf5+ {[%emt 0:01:05]} Kf8 {[%emt 0:01:08]} 46. hxg3 {[%emt 0:00:05]} Ra4 {[%emt 0:01:13]} 47. Ne3 {[%emt 0:02:08]} Ke7 {[%emt 0:07:23]} 0-1

[Event "34th MPL National U14G-ch 2022"]
[Site "Ahmedabad"]
[Date "2022.05.09"]
[Round "1.4"]
[White "Siya Neeraj Kushwah"]
[Black "Anupam M Sreekumar"]
[Result "0-1"]
[ECO "D36"]
[WhiteElo "1209"]
[BlackElo "1673"]
[Annotator "NA RC COMBH"]
[PlyCount "100"]
[EventDate "2022.05.09"]
[EventType "swiss"]
[EventCountry "IND"]
[SourceTitle "playchess.com"]
[Source "ChessBase"]
[SourceQuality "1"]
[TimeControl "5400+30"]

1. d4 {[%emt 0:00:02]} d5 {[%emt 0:00:23]} 2. c4 {[%emt 0:00:14]} e6 {[%emt 0:00:27]} 3. Nc3 {[%emt 0:00:16]} Nf6 {[%emt 0:00:07]} 4. cxd5 {[%emt 0:00:13]} exd5 {[%emt 0:00:10]} 5. Bg5 {[%emt 0:00:11]} Be7 {[%emt 0:00:17]} 6. e3 {[%emt 0:00:15]} c6 {[%emt 0:00:30]} 7. Bd3 {[%emt 0:00:16]} Nbd7 {[%emt 0:00:23]} 8. Nge2 {[%emt 0:00:21]} O-O {[%emt 0:00:54]} 9. O-O {[%emt 0:00:31]} Re8 {[%emt 0:00:16]} 10. Qc2 {[%emt 0:00:45]} Nf8 {[%emt 0:00:31]} 11. Rae1 {[%emt 0:01:28]} g6 {[%emt 0:00:57]} 12. f3 {[%emt 0:01:31]} Ne6 {[%emt 0:01:30]} 13. Bh4 {[%emt 0:03:23]} b6 {[%emt 0:01:27]} 14. e4 {[%emt 0:03:29]} dxe4 {[%emt 0:02:59]} 15. Nxe4 {[%emt 0:02:11]} Nxe4 {[%emt 0:08:00]} 16. Bxe7 {[%emt 0:02:45]} Rxe7 {[%emt 0:01:05]} 17. Bxe4 {[%emt 0:03:36]} Nxd4 {[%emt 0:03:32]} 18. Nxd4 {[%emt 0:04:37]} Qxd4+ {[%emt 0:00:24]} 19. Kh1 {[%emt 0:00:12]} Ba6 {[%emt 0:07:56]} 20. Rd1 {[%emt 0:04:37]} Qc4 {[%emt 0:01:41]} 21. Rfe1 {[%emt 0:20:07]} Qxc2 {[%emt 0:02:29]} 22. Bxc2 {[%emt 0:02:22]} Rae8 {[%emt 0:00:27]} 23. Rxe7 {[%emt 0:06:37]} Rxe7 {[%emt 0:00:14]} 24. Kg1 {[%emt 0:00:26]} Kg7 {[%emt 0:03:50]} 25. Be4 {[%emt 0:06:36]} Bb5 {[%emt 0:02:02]} 26. Bd3 {[%emt 0:01:25]} Bxd3 {[%emt 0:03:45]} 27. Rxd3 {[%emt 0:00:05]} Re2 {[%emt 0:00:11]} 28. Rb3 {[%emt 0:04:25]} Rc2 {[%emt 0:01:44]} 29. Rb4 {[%emt 0:02:57]} b5 {[%emt 0:01:07]} 30. Rb3 {[%emt 0:02:06]} a5 {[%emt 0:00:44]} 31. a3 {[%emt 0:01:53]} f5 {[%emt 0:01:50]} 32. h3 {[%emt 0:01:29]} g5 {[%emt 0:04:01]} 33. Kh2 {[%emt 0:04:14]} h5 {[%emt 0:01:06]} 34. Kg1 {[%emt 0:00:39]} Kf6 {[%emt 0:00:35]} 35. Kf1 {[%emt 0:01:54]} Ke5 {[%emt 0:00:50]} 36. Re3+ {[%emt 0:01:06]} Kf4 {[%emt 0:01:10]} 37. Re2 {[%emt 0:00:56]} Rxe2 {[%emt 0:00:43]} 38. Kxe2 {[%emt 0:00:02]} Kg3 {[%emt 0:00:13]} 39. Kf1 {[%emt 0:00:21]} c5 {[%emt 0:00:01]} 40. b3 {[%emt 0:05:17]} a4 {[%emt 0:02:07]} 41. bxa4 {[%emt 0:03:39]} bxa4 {[%emt 0:00:10]} 42. Ke2 {[%emt 0:01:37]} Kxg2 {[%emt 0:00:03]} 43. Kd3 {[%emt 0:01:22]} Kxf3 {[%emt 0:00:02]} 44. Kc4 {[%emt 0:00:27]} Kg3 {[%emt 0:00:07]} 45. Kb5 {[%emt 0:02:25]} f4 {[%emt 0:00:02]} 46. Kxa4 {[%emt 0:00:19]} f3 {[%emt 0:00:03]} 47. Kb3 {[%emt 0:00:19]} f2 {[%emt 0:00:05]} 48. a4 {[%emt 0:00:14]} f1=Q {[%emt 0:00:05]} 49. a5 {[%emt 0:00:25]} c4+ {[%emt 0:00:01]} 50. Kc3 {[%emt 0:00:36]} Qd3+ {[%emt 0:00:02]} 0-1

[Event "34th MPL National U14G-ch 2022"]
[Site "Ahmedabad"]
[Date "2022.05.09"]
[Round "1.5"]
[White "Shubhi Gupta"]
[Black "Kavya N"]
[Result "1-0"]
[ECO "D97"]
[WhiteElo "1613"]
[BlackElo "1202"]
[Annotator "NA RC COMBH"]
[PlyCount "101"]
[EventDate "2022.05.09"]
[EventType "swiss"]
[EventCountry "IND"]
[SourceTitle "playchess.com"]
[Source "ChessBase"]
[SourceQuality "1"]
[TimeControl "5400+30"]

1. d4 {[%emt 0:00:08]} Nf6 {[%emt 0:00:14]} 2. c4 {[%emt 0:00:10]} g6 {[%emt 0:00:06]} 3. Nf3 {[%emt 0:00:08]} Bg7 {[%emt 0:00:32]} 4. Nc3 {[%emt 0:00:32]} d5 {[%emt 0:00:16]} 5. Qb3 {[%emt 0:00:20]} dxc4 {[%emt 0:03:07]} 6. Qxc4 {[%emt 0:00:38]} O-O {[%emt 0:01:45]} 7. e4 {[%emt 0:02:44]} e6 {[%emt 0:01:53]} 8. Be2 {[%emt 0:02:51]} Qe7 {[%emt 0:05:17]} 9. Be3 {[%emt 0:02:41]} Na6 {[%emt 0:02:33]} 10. O-O {[%emt 0:03:25]} Bd7 {[%emt 0:03:04]} 11. Rfd1 {[%emt 0:04:05]} Qb4 {[%emt 0:03:50]} 12. Qxb4 {[%emt 0:02:06]} Nxb4 {[%emt 0:00:02]} 13. Bf4 {[%emt 0:00:53]} Rac8 {[%emt 0:02:08]} 14. a3 {[%emt 0:02:45]} Na6 {[%emt 0:00:32]} 15. Bxa6 {[%emt 0:02:12]} bxa6 {[%emt 0:01:24]} 16. Rac1 {[%emt 0:00:35]} Rfd8 {[%emt 0:02:07]} 17. e5 {[%emt 0:01:38]} Nd5 {[%emt 0:02:07]} 18. Nxd5 {[%emt 0:02:58]} exd5 {[%emt 0:00:30]} 19. Rc5 {[%emt 0:01:57]} Bb5 {[%emt 0:02:35]} 20. Rdc1 {[%emt 0:01:38]} c6 {[%emt 0:07:23]} 21. Nd2 {[%emt 0:02:31]} f6 {[%emt 0:12:09]} 22. Nf3 {[%emt 0:02:20]} Re8 {[%emt 0:11:51]} 23. exf6 {[%emt 0:02:28]} Bxf6 {[%emt 0:00:12]} 24. Be5 {[%emt 0:00:24]} Bd8 {[%emt 0:04:08]} 25. Rxd5 {[%emt 0:02:05]} Bg5 {[%emt 0:01:55]} 26. Rdc5 {[%emt 0:01:21]} Bxc1 {[%emt 0:00:13]} 27. Rxc1 {[%emt 0:00:03]} Bd3 {[%emt 0:02:04]} 28. b4 {[%emt 0:00:43]} Be4 {[%emt 0:00:59]} 29. Nd2 {[%emt 0:01:08]} Bd5 {[%emt 0:00:35]} 30. Nb1 {[%emt 0:03:11]} Kf7 {[%emt 0:01:28]} 31. Nc3 {[%emt 0:00:22]} Bb3 {[%emt 0:07:42]} 32. Ne4 {[%emt 0:02:05]} Rxe5 {[%emt 0:01:12]} 33. dxe5 {[%emt 0:00:25]} Ke7 {[%emt 0:00:23]} 34. Nd6 {[%emt 0:01:31]} Rc7 {[%emt 0:00:36]} 35. f4 {[%emt 0:00:14]} Ke6 {[%emt 0:00:32]} 36. Kf2 {[%emt 0:00:15]} Bd5 {[%emt 0:01:03]} 37. g3 {[%emt 0:00:15]} g5 {[%emt 0:00:34]} 38. Ke3 {[%emt 0:02:44]} gxf4+ {[%emt 0:00:43]} 39. gxf4 {[%emt 0:00:11]} Rg7 {[%emt 0:00:30]} 40. Kd4 {[%emt 0:00:30]} Rg2 {[%emt 0:00:30]} 41. f5+ {[%emt 0:00:30]} Kd7 {[%emt 0:00:30]} 42. Kc5 {[%emt 0:00:30]} Rxh2 {[%emt 0:00:30]} 43. e6+ {[%emt 0:00:30]} Ke7 {[%emt 0:00:30]} 44. Nc8+ {[%emt 0:00:30]} Kf6 {[%emt 0:00:30]} 45. Re1 {[%emt 0:00:30]} Kxf5 {[%emt 0:00:30]} 46. Ne7+ {[%emt 0:00:30]} Kf6 {[%emt 0:00:30]} 47. Nxd5+ {[%emt 0:00:30]} cxd5 {[%emt 0:00:30]} 48. e7 {[%emt 0:00:30]} Rc2+ {[%emt 0:00:30]} 49. Kd6 {[%emt 0:00:30]} Rc8 {[%emt 0:00:30]} 50. e8=Q {[%emt 0:00:30]} Rxe8 {[%emt 0:00:30]} 51. Rxe8 {[%emt 0:00:30]} 1-0

[Event "34th MPL National U14G-ch 2022"]
[Site "Ahmedabad"]
[Date "2022.05.09"]
[Round "1.6"]
[White "Banker Reya"]
[Black "Pragnya H G"]
[Result "0-1"]
[ECO "D78"]
[WhiteElo "1195"]
[BlackElo "1605"]
[Annotator "NA RC COMBH"]
[PlyCount "124"]
[EventDate "2022.05.09"]
[EventType "swiss"]
[EventCountry "IND"]
[SourceTitle "playchess.com"]
[Source "ChessBase"]
[SourceQuality "1"]
[TimeControl "5400+30"]

1. d4 {[%emt 0:00:05]} Nf6 {[%emt 0:00:30]} 2. c4 {[%emt 0:00:11]} e6 {[%emt 0:00:07]} 3. Nc3 {[%emt 0:00:51]} d5 {[%emt 0:00:05]} 4. Nf3 {[%emt 0:00:39]} c6 {[%emt 0:00:04]} 5. g3 {[%emt 0:00:29]} g6 {[%emt 0:00:48]} 6. Bg2 {[%emt 0:00:13]} Bg7 {[%emt 0:00:05]} 7. O-O {[%emt 0:00:20]} O-O {[%emt 0:00:13]} 8. b3 {[%emt 0:01:11]} Nbd7 {[%emt 0:00:35]} 9. Bb2 {[%emt 0:00:22]} b6 {[%emt 0:01:00]} 10. Qc2 {[%emt 0:01:40]} Ba6 {[%emt 0:02:01]} 11. Nd2 {[%emt 0:01:57]} Rc8 {[%emt 0:01:34]} 12. Rac1 {[%emt 0:03:15]} c5 {[%emt 0:08:57]} 13. e3 {[%emt 0:06:21]} dxc4 {[%emt 0:06:17]} 14. bxc4 {[%emt 0:00:33]} cxd4 {[%emt 0:00:06]} 15. exd4 {[%emt 0:00:33]} Bh6 {[%emt 0:00:11]} 16. Rfd1 {[%emt 0:03:28]} Bxc4 {[%emt 0:01:46]} 17. Ba3 {[%emt 0:02:25]} Re8 {[%emt 0:01:19]} 18. Rb1 {[%emt 0:05:13]} Bd5 {[%emt 0:01:50]} 19. Nf3 {[%emt 0:01:40]} Be4 {[%emt 0:01:05]} 20. Qb2 {[%emt 0:00:50]} Bxb1 {[%emt 0:00:09]} 21. Rxb1 {[%emt 0:00:18]} a6 {[%emt 0:02:12]} 22. Rd1 {[%emt 0:02:45]} Qc7 {[%emt 0:00:42]} 23. Ne2 {[%emt 0:02:37]} Qc2 {[%emt 0:02:39]} 24. Qxc2 {[%emt 0:06:19]} Rxc2 {[%emt 0:00:02]} 25. Nc1 {[%emt 0:01:18]} Rec8 {[%emt 0:00:46]} 26. Nb3 {[%emt 0:01:39]} Rxa2 {[%emt 0:00:28]} 27. Be7 {[%emt 0:01:52]} Rb2 {[%emt 0:00:27]} 28. Nbd2 {[%emt 0:00:55]} Rcc2 {[%emt 0:00:15]} 29. Nf1 {[%emt 0:00:54]} Rxf2 {[%emt 0:00:29]} 30. Bh1 {[%emt 0:00:28]} a5 {[%emt 0:05:21]} 31. Rd3 {[%emt 0:02:26]} Nd5 {[%emt 0:01:55]} 32. Ba3 {[%emt 0:01:03]} Ra2 {[%emt 0:00:27]} 33. Bd6 {[%emt 0:01:32]} Rxf1+ {[%emt 0:01:45]} 34. Kxf1 {[%emt 0:01:07]} Ne3+ {[%emt 0:00:03]} 35. Kg1 {[%emt 0:01:19]} Ra1+ {[%emt 0:00:11]} 36. Kf2 {[%emt 0:00:14]} Rf1+ {[%emt 0:00:26]} 37. Ke2 {[%emt 0:00:51]} Rxh1 {[%emt 0:00:04]} 38. Bc7 {[%emt 0:00:55]} Nd5 {[%emt 0:00:06]} 39. Bd6 {[%emt 0:00:21]} Bf8 {[%emt 0:00:14]} 40. Bxf8 {[%emt 0:00:36]} Kxf8 {[%emt 0:00:03]} 41. Ne5 {[%emt 0:01:10]} Rxh2+ {[%emt 0:00:11]} 42. Kf3 {[%emt 0:00:38]} Nxe5+ {[%emt 0:00:04]} 43. dxe5 {[%emt 0:00:18]} a4 {[%emt 0:00:06]} 44. Ra3 {[%emt 0:01:23]} b5 {[%emt 0:00:04]} 45. Ke4 {[%emt 0:00:28]} Re2+ {[%emt 0:00:06]} 46. Kd4 {[%emt 0:00:59]} Re3 {[%emt 0:00:03]} 47. Rxe3 {[%emt 0:00:18]} Nxe3 {[%emt 0:00:07]} 48. Kxe3 {[%emt 0:00:07]} a3 {[%emt 1:06:32]} 49. Kd4 {[%emt 0:00:38]} a2 {[%emt 0:00:00]} 50. Kc5 {[%emt 0:00:08]} a1=Q {[%emt 0:00:00]} 51. Kxb5 {[%emt 0:00:21]} Qc3 {[%emt 0:00:00]} 52. g4 {[%emt 0:00:23]} Qxe5+ {[%emt 0:00:00]} 53. Kc4 {[%emt 0:00:29]} Qd5+ {[%emt 0:00:00]} 54. Kc3 {[%emt 0:00:13]} Qe4 {[%emt 0:00:00]} 55. g5 {[%emt 0:00:15]} Ke7 {[%emt 0:00:00]} 56. Kd2 {[%emt 0:00:28]} Qf3 {[%emt 0:00:00]} 57. Ke1 {[%emt 0:00:07]} Qg2 {[%emt 0:00:00]} 58. Kd1 {[%emt 0:00:09]} Kd6 {[%emt 0:00:00]} 59. Ke1 {[%emt 0:00:11]} Ke5 {[%emt 0:00:00]} 60. Kd1 {[%emt 0:00:18]} Kd4 {[%emt 0:00:00]} 61. Kc1 {[%emt 0:02:43]} Kc3 {[%emt 0:00:00]} 62. Kb1 {[%emt 0:00:27]} Qb2# {[%emt 0:00:00]} 0-1

[Event "34th MPL National U14G-ch 2022"]
[Site "Ahmedabad"]
[Date "2022.05.09"]
[Round "1.7"]
[White "Rajanya Datta"]
[Black "Prapti Dholay"]
[Result "1-0"]
[ECO "C44"]
[WhiteElo "1589"]
[BlackElo "1189"]
[Annotator "NA RC COMBH"]
[PlyCount "107"]
[EventDate "2022.05.09"]
[EventType "swiss"]
[EventCountry "IND"]
[SourceTitle "playchess.com"]
[Source "ChessBase"]
[SourceQuality "1"]
[TimeControl "5400+30"]

1. e4 {[%emt 0:00:11]} e5 {[%emt 0:00:07]} 2. Nf3 {[%emt 0:00:09]} Nc6 {[%emt 0:00:22]} 3. c3 {[%emt 0:00:18]} Bc5 {[%emt 0:01:51]} 4. d4 {[%emt 0:00:34]} exd4 {[%emt 0:00:21]} 5. cxd4 {[%emt 0:00:15]} Bb4+ {[%emt 0:00:13]} 6. Bd2 {[%emt 0:00:27]} Bxd2+ {[%emt 0:00:12]} 7. Nbxd2 {[%emt 0:00:09]} d5 {[%emt 0:00:29]} 8. e5 {[%emt 0:00:47]} Bf5 {[%emt 0:01:44]} 9. Bb5 {[%emt 0:02:53]} Nge7 {[%emt 0:02:31]} 10. O-O {[%emt 0:01:44]} O-O {[%emt 0:00:21]} 11. Qb3 {[%emt 0:04:12]} Rb8 {[%emt 0:01:56]} 12. a3 {[%emt 0:10:01]} a6 {[%emt 0:05:11]} 13. Bd3 {[%emt 0:00:37]} Qd7 {[%emt 0:01:38]} 14. Rfe1 {[%emt 0:08:20]} Rfe8 {[%emt 0:01:16]} 15. Qc3 {[%emt 0:06:01]} Bxd3 {[%emt 0:09:40]} 16. Qxd3 {[%emt 0:00:42]} Qf5 {[%emt 0:00:54]} 17. Qc3 {[%emt 0:07:20]} Ng6 {[%emt 0:08:13]} 18. Nf1 {[%emt 0:04:55]} Nf4 {[%emt 0:03:05]} 19. Qd2 {[%emt 0:06:20]} Ne6 {[%emt 0:13:55]} 20. Rad1 {[%emt 0:07:52]} h6 {[%emt 0:04:32]} 21. Ng3 {[%emt 0:04:05]} Qg6 {[%emt 0:02:46]} 22. b4 {[%emt 0:05:44]} Ne7 {[%emt 0:04:07]} 23. Qc3 {[%emt 0:06:38]} c6 {[%emt 0:02:12]} 24. a4 {[%emt 0:02:36]} Nf5 {[%emt 0:03:33]} 25. Qb2 {[%emt 0:05:39]} Rec8 {[%emt 0:08:25]} 26. Qd2 {[%emt 0:03:52]} Rd8 {[%emt 0:04:04]} 27. Rb1 {[%emt 0:03:09]} Re8 {[%emt 0:06:48]} 28. Rb3 {[%emt 0:01:51]} Qg4 {[%emt 0:03:58]} 29. Rd1 {[%emt 0:01:36]} b6 {[%emt 0:03:08]} 30. Qd3 {[%emt 0:01:24]} a5 {[%emt 0:01:23]} 31. Qxf5 {[%emt 0:00:19]} Qxf5 {[%emt 0:01:25]} 32. Nxf5 {[%emt 0:00:06]} axb4 {[%emt 0:00:26]} 33. Rxb4 {[%emt 0:00:07]} c5 {[%emt 0:00:29]} 34. dxc5 {[%emt 0:00:27]} bxc5 {[%emt 0:00:06]} 35. Rxb8 {[%emt 0:00:08]} Rxb8 {[%emt 0:00:05]} 36. Ne7+ {[%emt 0:00:06]} Kf8 {[%emt 0:01:35]} 37. Nxd5 {[%emt 0:00:08]} Ke8 {[%emt 0:01:10]} 38. h3 {[%emt 0:00:09]} Rb2 {[%emt 0:01:04]} 39. Ra1 {[%emt 0:01:05]} Kd7 {[%emt 0:02:00]} 40. a5 {[%emt 0:01:51]} Kc6 {[%emt 0:03:15]} 41. Ne3 {[%emt 0:00:15]} Nc7 {[%emt 0:00:00]} 42. a6 {[%emt 0:01:37]} Rb8 {[%emt 0:00:00]} 43. Nf5 {[%emt 0:00:24]} Ne6 {[%emt 0:00:00]} 44. Nd2 {[%emt 0:00:46]} Ra8 {[%emt 0:00:26]} 45. Nc4 {[%emt 0:00:21]} Kb5 {[%emt 0:00:39]} 46. Nfd6+ {[%emt 0:00:10]} Kc6 {[%emt 0:00:30]} 47. Nxf7 {[%emt 0:00:14]} Nc7 {[%emt 0:00:35]} 48. a7 {[%emt 0:00:51]} Nb5 {[%emt 0:00:35]} 49. Ra6+ {[%emt 0:00:23]} Kc7 {[%emt 0:01:02]} 50. Nfd6 {[%emt 0:00:31]} Nxa7 {[%emt 0:00:38]} 51. Rxa7+ {[%emt 0:00:08]} Rxa7 {[%emt 0:00:30]} 52. Nb5+ {[%emt 0:00:04]} Kb7 {[%emt 0:00:19]} 53. Nxa7 {[%emt 0:00:08]} Kxa7 {[%emt 0:00:11]} 54. e6 {[%emt 0:00:14]} 1-0